fUST/lending_fUST_20250219
["ID","MTS","AMOUNT","RATE_DAILY","PERIOD"]
[353546415,1739907046576,-500.0,0.00013945,2]
[353546416,1739907046586,-500.0,0.00013945,2]
[353546417,1739907046596,-500.0,0.00013945,2]
[353546418,1739907046607,-500.0,0.00013945,2]
[353546419,1739907046619,-497.47336471,0.00013945,2]
[353546420,1739907046628,-500.0,0.00013945,2]
[353546421,1739907046638,-500.0,0.00013945,2]
[353546422,1739907046647,-500.0,0.00013945,2]
[353546423,1739907046658,-500.0,0.00013945,2]
[353546424,1739907046668,-500.0,0.00013945,2]
[353546425,1739907046677,-507.03250244,0.00013945,2]
[353546426,1739907046690,-513.62697231,0.00013945,2]
[353546427,1739907046699,-500.0,0.00013945,2]
[353546428,1739907046709,-500.0,0.00013945,2]
[353546429,1739907046718,-500.0,0.00013945,2]
[353546430,1739907046728,-500.0,0.00013945,2]
[353546431,1739907046739,-500.0,0.00013945,2]
[353546432,1739907046749,-500.0,0.00013945,2]
[353546433,1739907046758,-500.0,0.00013945,2]
[353546434,1739907046767,-500.0,0.00013945,2]
[353546435,1739907046777,-500.0,0.00013945,2]
[353546436,1739907046787,-500.0,0.00013945,2]
[353546437,1739907046796,-500.0,0.00013945,2]
[353546438,1739907046806,-500.0,0.00013945,2]
[353546439,1739907046815,-500.0,0.00013945,2]
[353546440,1739907046825,-500.0,0.00013945,2]
[353546441,1739907046835,-500.0,0.00013945,2]
[353546442,1739907046844,-500.0,0.00013945,2]
[353546443,1739907046854,-12422.8,0.00013945,2]
[353546444,1739907046863,-500.0,0.00013945,2]
[353546445,1739907046873,-500.0,0.00013945,2]
[353546446,1739907046882,-500.0,0.00013945,2]
[353546447,1739907046892,-524.81,0.00013945,2]
[353546448,1739907046902,-500.0,0.00013945,2]
[353546449,1739907046912,-500.0,0.00013945,2]
[353546450,1739907046922,-500.0,0.00013945,2]
[353546451,1739907046932,-500.0,0.00013945,2]
[353546452,1739907046942,-687.8,0.00013945,2]
[353546453,1739907046952,-500.0,0.00013945,2]
[353546454,1739907046962,-1317.4,0.00013945,2]
[353546455,1739907046972,-500.0,0.00013945,2]
[353546456,1739907046982,-500.0,0.00013945,2]
[353546457,1739907046991,-714.53,0.00013945,2]
[353546458,1739907047000,-500.0,0.00013945,2]
[353546459,1739907047010,-500.0,0.00013945,2]
[353546460,1739907047019,-500.0,0.00013945,2]
[353546461,1739907047028,-500.0,0.00013945,2]
[353546462,1739907047038,-500.0,0.00013945,2]
[353546463,1739907047047,-500.0,0.00013945,2]
[353546464,1739907047057,-500.0,0.00013945,2]
[353546465,1739907047066,-500.0,0.00013945,2]
[353546466,1739907047076,-630.31,0.00013945,2]
[353546467,1739907047085,-500.0,0.00013945,2]
[353546468,1739907047095,-500.0,0.00013945,2]
[353546469,1739907047105,-500.0,0.00013945,2]
[353546470,1739907047116,-500.0,0.00013945,2]
[353546471,1739907047126,-500.0,0.00013945,2]
[353546472,1739907047138,-500.0,0.00013945,2]
[353546473,1739907047148,-613.52,0.00013945,2]
[353546474,1739907047158,-500.0,0.00013945,2]
[353546475,1739907047167,-500.0,0.00013945,2]
[353546476,1739907047177,-5390.8,0.00013945,2]
[353546477,1739907047187,-538.04,0.00013945,2]
[353546478,1739907047197,-500.0,0.00013945,2]
[353546479,1739907047207,-500.0,0.00013945,2]
[353546480,1739907047217,-500.0,0.00013945,2]
[353546481,1739907047227,-500.0,0.00013945,2]
[353546482,1739907047237,-500.0,0.00013945,2]
[353546483,1739907047247,-1775.31,0.00013945,2]
[353546484,1739907047257,-500.0,0.00013945,2]
[353546485,1739907047267,-799.19,0.00013945,2]
[353546486,1739907047276,-500.0,0.00013945,2]
[353546487,1739907047287,-785.18,0.00013945,2]
[353546488,1739907047297,-3504.82,0.00013945,2]
[353546489,1739907047307,-191.0,0.00013951,2]
[353546490,1739907047316,-2405.05799761,0.00014,2]
[353546491,1739907047327,-7438.69753278,0.00014025,2]
[353546492,1739907047336,-500.0,0.00014027,2]
[353546493,1739907047346,-500.0,0.00014027,2]
[353546494,1739907047356,-500.0,0.00014027,2]
[353546495,1739907047366,-500.0,0.00014027,2]
[353546496,1739907047376,-547.82,0.00014027,2]
[353546497,1739907047385,-500.0,0.00014027,2]
[353546498,1739907047395,-283.10591411,0.00014027,2]
[353546499,1739907047404,-500.0,0.00014027,2]
[353546500,1739907047413,-260.57913251,0.00014027,2]
[353546501,1739907047423,-500.0,0.00014027,2]
[353546502,1739907047432,-500.0,0.00014027,2]
[353546503,1739907047441,-500.0,0.00014027,2]
[353546504,1739907047450,-500.0,0.00014027,2]
[353546505,1739907047460,-500.0,0.00014027,2]
[353546506,1739907047470,-500.0,0.00014027,2]
[353546507,1739907047480,-500.0,0.00014027,2]
[353546508,1739907047490,-500.0,0.00014027,2]
[353546509,1739907047500,-500.0,0.00014027,2]
[353546510,1739907047510,-500.0,0.00014027,2]
[353546511,1739907047519,-500.0,0.00014027,2]
[353546512,1739907047529,-500.0,0.00014027,2]
[353546513,1739907047539,-500.0,0.00014027,2]
[353546514,1739907047548,-500.0,0.00014027,2]
[353546515,1739907047558,-500.0,0.00014027,2]
[353546516,1739907047568,-500.0,0.00014027,2]
[353546517,1739907047578,-500.0,0.00014027,2]
[353546518,1739907047587,-500.0,0.00014027,2]
[353546519,1739907047597,-500.0,0.00014027,2]
[353546520,1739907047608,-500.0,0.00014027,2]
[353546521,1739907047618,-500.0,0.00014027,2]
[353546522,1739907047628,-500.0,0.00014027,2]
[353546523,1739907047639,-500.0,0.00014027,2]
[353546524,1739907047651,-500.0,0.00014027,2]
[353546525,1739907047660,-500.0,0.00014027,2]
[353546526,1739907047671,-500.0,0.00014027,2]
[353546527,1739907047682,-500.0,0.00014027,2]
[353546528,1739907047692,-12422.8,0.00014027,2]
[353546529,1739907047702,-500.0,0.00014027,2]
[353546530,1739907047712,-500.0,0.00014027,2]
[353546531,1739907047722,-500.0,0.00014027,2]
[353546532,1739907047732,-524.81,0.00014027,2]
[353546533,1739907047741,-500.0,0.00014027,2]
[353546534,1739907047752,-500.0,0.00014027,2]
[353546535,1739907047762,-500.0,0.00014027,2]
[353546536,1739907047772,-687.8,0.00014027,2]
[353546537,1739907047782,-500.0,0.00014027,2]
[353546538,1739907047792,-1317.4,0.00014027,2]
[353546539,1739907047802,-500.0,0.00014027,2]
[353546540,1739907047812,-476.88297688,0.00014027,2]
[353546541,1739907047822,-714.53,0.00014027,2]
[353546542,1739907047832,-500.0,0.00014027,2]
[353546543,1739907047842,-500.0,0.00014027,2]
[353546544,1739907047851,-500.0,0.00014027,2]
[353546545,1739907047861,-500.0,0.00014027,2]
[353546546,1739907047871,-500.0,0.00014027,2]
[353546547,1739907047881,-500.0,0.00014027,2]
[353546548,1739907047891,-630.31,0.00014027,2]
[353546549,1739907047901,-349.31001524,0.00014027,2]
[353546550,1739907047911,-500.0,0.00014027,2]
[353546551,1739907047921,-500.0,0.00014027,2]
[353546552,1739907047931,-500.0,0.00014027,2]
[353546553,1739907047941,-500.0,0.00014027,2]
[353546554,1739907047951,-613.52,0.00014027,2]
[353546555,1739907047961,-500.0,0.00014027,2]
[353546556,1739907047971,-500.0,0.00014027,2]
[353546557,1739907047982,-5390.8,0.00014027,2]
[353546558,1739907047992,-538.04,0.00014027,2]
[353546559,1739907048002,-500.0,0.00014027,2]
[353546560,1739907048012,-500.0,0.00014027,2]
[353546561,1739907048022,-500.0,0.00014027,2]
[353546562,1739907048033,-500.0,0.00014027,2]
[353546563,1739907048044,-1775.31,0.00014027,2]
[353546564,1739907048054,-500.0,0.00014027,2]
[353546565,1739907048066,-799.19,0.00014027,2]
[353546566,1739907048076,-500.0,0.00014027,2]
[353546567,1739907048086,-785.18,0.00014027,2]
[353546568,1739907048096,-3504.82,0.00014027,2]
[353546569,1739907048106,-500.0,0.00014054,2]
[353546570,1739907048118,-500.0,0.00014109,2]
[353546571,1739907048129,-500.0,0.00014109,2]
[353546572,1739907048140,-547.82,0.00014109,2]
[353546573,1739907048152,-500.0,0.00014109,2]
[353546574,1739907048162,-500.0,0.00014109,2]
[353546575,1739907048173,-500.0,0.00014109,2]
[353546576,1739907048183,-500.0,0.00014109,2]
[353546577,1739907048194,-500.0,0.00014109,2]
[353546578,1739907048205,-500.0,0.00014109,2]
[353546579,1739907048215,-500.0,0.00014109,2]
[353546580,1739907048226,-500.0,0.00014109,2]
[353546581,1739907048237,-500.0,0.00014109,2]
[353546582,1739907048248,-500.0,0.00014109,2]
[353546583,1739907048259,-500.0,0.00014109,2]
[353546584,1739907048269,-500.0,0.00014109,2]
[353546585,1739907048281,-500.0,0.00014109,2]
[353546586,1739907048291,-500.0,0.00014109,2]
[353546587,1739907048303,-500.0,0.00014109,2]
[353546588,1739907048313,-500.0,0.00014109,2]
[353546589,1739907048323,-500.0,0.00014109,2]
[353546590,1739907048334,-500.0,0.00014109,2]
[353546591,1739907048345,-500.0,0.00014109,2]
[353546592,1739907048355,-357.5,0.00014109,2]
[353546593,1739907048365,-500.0,0.00014109,2]
[353546594,1739907048376,-500.0,0.00014109,2]
[353546595,1739907048387,-500.0,0.00014109,2]
[353546596,1739907048397,-500.0,0.00014109,2]
[353546597,1739907048407,-12422.8,0.00014109,2]
[353546598,1739907048418,-500.0,0.00014109,2]
[353546599,1739907048428,-500.0,0.00014109,2]
[353546600,1739907048440,-500.0,0.00014109,2]
[353546601,1739907048450,-524.81,0.00014109,2]
[353546602,1739907048461,-500.0,0.00014109,2]
[353546603,1739907048473,-500.0,0.00014109,2]
[353546604,1739907048484,-500.0,0.00014109,2]
[353546605,1739907048495,-687.8,0.00014109,2]
[353546606,1739907048505,-500.0,0.00014109,2]
[353546607,1739907048516,-1317.4,0.00014109,2]
[353546608,1739907048526,-500.0,0.00014109,2]
[353546609,1739907048536,-714.53,0.00014109,2]
[353546610,1739907048546,-500.0,0.00014109,2]
[353546611,1739907048557,-500.0,0.00014109,2]
[353546612,1739907048568,-500.0,0.00014109,2]
[353546613,1739907048578,-511.2091456,0.00014109,2]
[353546614,1739907048589,-175.6,0.00014109,2]
[353546615,1739907048600,-500.0,0.00014109,2]
[353546616,1739907048611,-630.31,0.00014109,2]
[353546617,1739907048622,-500.0,0.00014109,2]
[353546618,1739907048633,-500.0,0.00014109,2]
[353546619,1739907048645,-500.0,0.00014109,2]
[353546620,1739907048656,-500.0,0.00014109,2]
[353546621,1739907048668,-613.52,0.00014109,2]
[353546622,1739907048678,-500.0,0.00014109,2]
[353546623,1739907048690,-500.0,0.00014109,2]
[353546624,1739907048701,-5390.8,0.00014109,2]
[353546625,1739907048711,-538.04,0.00014109,2]
[353546626,1739907048722,-500.0,0.00014109,2]
[353546627,1739907048733,-500.0,0.00014109,2]
[353546628,1739907048744,-500.0,0.00014109,2]
[353546629,1739907048754,-500.0,0.00014109,2]
[353546630,1739907048764,-1775.31,0.00014109,2]
[353546631,1739907048774,-500.0,0.00014109,2]
[353546632,1739907048797,-799.19,0.00014109,2]
[353546633,1739907048810,-500.0,0.00014109,2]
[353546634,1739907048821,-785.18,0.00014109,2]
[353546635,1739907048833,-365.499,0.00014186,2]
[353546636,1739907048845,-500.0,0.00014191,2]
[353546637,1739907048857,-547.82,0.00014191,2]
[353546638,1739907048868,-500.0,0.00014191,2]
[353546639,1739907048880,-500.0,0.00014191,2]
[353546640,1739907048892,-500.0,0.00014191,2]
[353546641,1739907048903,-500.0,0.00014191,2]
[353546642,1739907048915,-500.0,0.00014191,2]
[353546643,1739907048926,-500.0,0.00014191,2]
[353546644,1739907048937,-500.0,0.00014191,2]
[353546645,1739907048947,-176.56,0.00014191,2]
[353546646,1739907048958,-500.0,0.00014191,2]
[353546647,1739907048970,-500.0,0.00014191,2]
[353546648,1739907048980,-500.0,0.00014191,2]
[353546649,1739907048990,-500.0,0.00014191,2]
[353546650,1739907049002,-500.0,0.00014191,2]
[353546651,1739907049013,-215.73,0.00014191,2]
[353546652,1739907049024,-227.08,0.00014191,2]
[353546653,1739907049035,-626.0,0.00014191,2]
[353546654,1739907049046,-500.0,0.00014191,2]
[353546655,1739907049058,-500.0,0.00014191,2]
[353546656,1739907049068,-500.0,0.00014191,2]
[353546657,1739907049080,-500.0,0.00014191,2]
[353546658,1739907049092,-500.0,0.00014191,2]
[353546659,1739907049104,-12422.8,0.00014191,2]
[353546660,1739907049115,-500.0,0.00014191,2]
[353546661,1739907049125,-240.66756905,0.00014191,2]
[353546662,1739907049136,-500.0,0.00014191,2]
[353546663,1739907049149,-524.81,0.00014191,2]
[353546664,1739907049160,-500.0,0.00014191,2]
[353546665,1739907049171,-500.0,0.00014191,2]
[353546666,1739907049183,-500.0,0.00014191,2]
[353546667,1739907049193,-687.8,0.00014191,2]
[353546668,1739907049205,-500.0,0.00014191,2]
[353546669,1739907049215,-1317.4,0.00014191,2]
[353546670,1739907049226,-500.0,0.00014191,2]
[353546671,1739907049238,-714.53,0.00014191,2]
[353546672,1739907049250,-500.0,0.00014191,2]
[353546673,1739907049262,-500.0,0.00014191,2]
[353546674,1739907049273,-500.0,0.00014191,2]
[353546675,1739907049285,-500.0,0.00014191,2]
[353546676,1739907049296,-630.31,0.00014191,2]
[353546677,1739907049308,-500.0,0.00014191,2]
[353546678,1739907049320,-500.0,0.00014191,2]
[353546679,1739907049478,-500.0,0.00014191,2]
[353546680,1739907049489,-500.0,0.00014191,2]
[353546681,1739907049502,-613.52,0.00014191,2]
[353546682,1739907049513,-500.0,0.00014191,2]
[353546683,1739907049524,-500.0,0.00014191,2]
[353546684,1739907049535,-5390.8,0.00014191,2]
[353546685,1739907049546,-538.04,0.00014191,2]
[353546686,1739907049557,-500.0,0.00014191,2]
[353546687,1739907049568,-500.0,0.00014191,2]
[353546688,1739907049580,-500.0,0.00014191,2]
[353546689,1739907049591,-500.0,0.00014191,2]
[353546690,1739907049602,-1775.31,0.00014191,2]
[353546691,1739907049616,-799.19,0.00014191,2]
[353546692,1739907049627,-500.0,0.00014191,2]
[353546693,1739907049637,-785.18,0.00014191,2]
[353546694,1739907049650,-538.0,0.00014227,2]
[353546695,1739907049660,-1971.0,0.00014227,2]
[353546696,1739907049670,-2289.0,0.00014227,2]
[353546697,1739907049680,-396.0,0.00014227,2]
[353546698,1739907049693,-150.0,0.00014227,2]
[353546699,1739907049703,-547.82,0.00014273,2]
[353546700,1739907049713,-500.0,0.00014273,2]
[353546701,1739907049723,-500.0,0.00014273,2]
[353546702,1739907049734,-500.0,0.00014273,2]
[353546703,1739907049745,-500.0,0.00014273,2]
[353546704,1739907049755,-500.0,0.00014273,2]
[353546705,1739907049766,-369.21,0.00014273,2]
[353546706,1739907049776,-320.71202402,0.00014273,2]
[353546707,1739907049786,-617.56,0.00014273,2]
[353546708,1739907049796,-500.0,0.00014273,2]
[353546709,1739907049806,-500.0,0.00014273,2]
[353546710,1739907049815,-500.0,0.00014273,2]
[353546711,1739907049825,-500.0,0.00014273,2]
[353546712,1739907049835,-497.39,0.00014273,2]
[353546713,1739907049846,-500.0,0.00014273,2]
[353546714,1739907049856,-500.0,0.00014273,2]
[353546715,1739907049866,-500.0,0.00014273,2]
[353546716,1739907049875,-12422.8,0.00014273,2]
[353546717,1739907049885,-500.0,0.00014273,2]
[353546718,1739907049897,-500.0,0.00014273,2]
[353546719,1739907049907,-524.81,0.00014273,2]
[353546720,1739907049917,-500.0,0.00014273,2]
[353546721,1739907049928,-500.0,0.00014273,2]
[353546722,1739907049938,-500.0,0.00014273,2]
[353546723,1739907049948,-687.8,0.00014273,2]
[353546724,1739907049957,-500.0,0.00014273,2]
[353546725,1739907049967,-1317.4,0.00014273,2]
[353546726,1739907049978,-500.0,0.00014273,2]
[353546727,1739907049988,-714.53,0.00014273,2]
[353546728,1739907049997,-500.0,0.00014273,2]
[353546729,1739907050007,-500.0,0.00014273,2]
[353546730,1739907050017,-500.0,0.00014273,2]
[353546731,1739907050026,-500.0,0.00014273,2]
[353546732,1739907050035,-630.31,0.00014273,2]
[353546733,1739907050045,-500.0,0.00014273,2]
[353546734,1739907050055,-500.0,0.00014273,2]
[353546735,1739907050065,-500.0,0.00014273,2]
[353546736,1739907050075,-500.0,0.00014273,2]
[353546737,1739907050084,-613.52,0.00014273,2]
[353546738,1739907050094,-500.0,0.00014273,2]
[353546739,1739907050103,-632.7,0.00014273,2]
[353546740,1739907050111,-5390.8,0.00014273,2]
[353546741,1739907050119,-538.04,0.00014273,2]
[353546742,1739907050129,-500.0,0.00014273,2]
[353546743,1739907050138,-500.0,0.00014273,2]
[353546744,1739907050149,-500.0,0.00014273,2]
[353546745,1739907050158,-1775.31,0.00014273,2]
[353546746,1739907050167,-799.19,0.00014273,2]
[353546747,1739907050177,-500.0,0.00014273,2]
[353546748,1739907050187,-785.18,0.00014273,2]
[353546749,1739907050197,-500.0,0.00014328,2]
[353546750,1739907050206,-547.82,0.00014356,2]
[353546751,1739907050216,-500.0,0.00014356,2]
[353546752,1739907050226,-500.0,0.00014356,2]
[353546753,1739907050235,-500.0,0.00014356,2]
[353546754,1739907050244,-500.0,0.00014356,2]
[353546755,1739907050254,-500.0,0.00014356,2]
[353546756,1739907050263,-500.0,0.00014356,2]
[353546757,1739907050273,-500.0,0.00014356,2]
[353546758,1739907050283,-500.0,0.00014356,2]
[353546759,1739907050294,-500.0,0.00014356,2]
[353546760,1739907050303,-500.0,0.00014356,2]
[353546761,1739907050313,-500.0,0.00014356,2]
[353546762,1739907050322,-12422.8,0.00014356,2]
[353546763,1739907050332,-500.0,0.00014356,2]
[353546764,1739907050342,-500.0,0.00014356,2]
[353546765,1739907050352,-524.81,0.00014356,2]
[353546766,1739907050363,-500.0,0.00014356,2]
[353546767,1739907050373,-500.0,0.00014356,2]
[353546768,1739907050383,-500.0,0.00014356,2]
[353546769,1739907050395,-687.8,0.00014356,2]
[353546770,1739907050404,-500.0,0.00014356,2]
[353546771,1739907050414,-1317.4,0.00014356,2]
[353546772,1739907050423,-500.0,0.00014356,2]
[353546773,1739907050432,-714.53,0.00014356,2]
[353546774,1739907050442,-500.0,0.00014356,2]
[353546775,1739907050451,-500.0,0.00014356,2]
[353546776,1739907050461,-500.0,0.00014356,2]
[353546777,1739907050472,-500.0,0.00014356,2]
[353546778,1739907050481,-630.31,0.00014356,2]
[353546779,1739907050491,-500.0,0.00014356,2]
[353546780,1739907050501,-500.0,0.00014356,2]
[353546781,1739907050511,-500.0,0.00014356,2]
[353546782,1739907050521,-500.0,0.00014356,2]
[353546783,1739907050530,-613.52,0.00014356,2]
[353546784,1739907050540,-500.0,0.00014356,2]
[353546785,1739907050549,-5390.8,0.00014356,2]
[353546786,1739907050559,-538.04,0.00014356,2]
[353546787,1739907050568,-500.0,0.00014356,2]
[353546788,1739907050578,-500.0,0.00014356,2]
[353546789,1739907050587,-500.0,0.00014356,2]
[353546790,1739907050597,-1775.31,0.00014356,2]
[353546791,1739907050609,-799.19,0.00014356,2]
[353546792,1739907050619,-500.0,0.00014356,2]
[353546793,1739907050630,-785.18,0.00014356,2]
[353546794,1739907050640,-547.82,0.00014438,2]
[353546795,1739907050650,-500.0,0.00014438,2]
[353546796,1739907050660,-500.0,0.00014438,2]
[353546797,1739907050670,-500.0,0.00014438,2]
[353546798,1739907050680,-378.59,0.00014438,2]
[353546799,1739907050690,-500.0,0.00014438,2]
[353546800,1739907050700,-500.0,0.00014438,2]
[353546801,1739907050710,-567.03,0.00014438,2]
[353546802,1739907050719,-500.0,0.00014438,2]
[353546803,1739907050730,-500.0,0.00014438,2]
[353546804,1739907050739,-500.0,0.00014438,2]
[353546805,1739907050750,-500.0,0.00014438,2]
[353546806,1739907050761,-12422.8,0.00014438,2]
[353546807,1739907050771,-500.0,0.00014438,2]
[353546808,1739907050781,-500.0,0.00014438,2]
[353546809,1739907050792,-524.81,0.00014438,2]
[353546810,1739907050802,-500.0,0.00014438,2]
[353546811,1739907050813,-500.0,0.00014438,2]
[353546812,1739907050823,-371.28,0.00014438,2]
[353546813,1739907050833,-687.8,0.00014438,2]
[353546814,1739907050844,-500.0,0.00014438,2]
[353546815,1739907050854,-1317.4,0.00014438,2]
[353546816,1739907050864,-500.0,0.00014438,2]
[353546817,1739907050873,-714.53,0.00014438,2]
[353546818,1739907050883,-500.0,0.00014438,2]
[353546819,1739907050893,-500.0,0.00014438,2]
[353546820,1739907050903,-500.0,0.00014438,2]
[353546821,1739907050913,-500.0,0.00014438,2]
[353546822,1739907050923,-630.31,0.00014438,2]
[353546823,1739907050932,-500.0,0.00014438,2]
[353546824,1739907050941,-500.0,0.00014438,2]
[353546825,1739907050950,-500.0,0.00014438,2]
[353546826,1739907050960,-500.0,0.00014438,2]
[353546827,1739907050970,-613.52,0.00014438,2]
[353546828,1739907050980,-500.0,0.00014438,2]
[353546829,1739907050990,-5390.8,0.00014438,2]
[353546830,1739907051000,-538.04,0.00014438,2]
[353546831,1739907051009,-500.0,0.00014438,2]
[353546832,1739907051019,-500.0,0.00014438,2]
[353546833,1739907051029,-500.0,0.00014438,2]
[353546834,1739907051039,-1775.31,0.00014438,2]
[353546835,1739907051048,-799.19,0.00014438,2]
[353546836,1739907051058,-500.0,0.00014438,2]
[353546837,1739907051068,-785.18,0.00014438,2]
[353546838,1739907051078,-900.0,0.00014438,2]
[353546839,1739907051088,-465.10339009,0.00014465,2]
[353546840,1739907051098,-547.82,0.0001452,2]
[353546841,1739907051107,-500.0,0.0001452,2]
[353546842,1739907051116,-500.0,0.0001452,2]
[353546843,1739907051126,-406.37600996,0.0001452,2]
[353546844,1739907051135,-500.0,0.0001452,2]
[353546845,1739907051146,-500.0,0.0001452,2]
[353546846,1739907051155,-500.0,0.0001452,2]
[353546847,1739907051165,-500.0,0.0001452,2]
[353546848,1739907051175,-500.0,0.0001452,2]
[353546849,1739907051184,-500.0,0.0001452,2]
[353546850,1739907051194,-12422.8,0.0001452,2]
[353546851,1739907051203,-500.0,0.0001452,2]
[353546852,1739907051213,-500.0,0.0001452,2]
[353546853,1739907051223,-524.81,0.0001452,2]
[353546854,1739907051232,-500.0,0.0001452,2]
[353546855,1739907051242,-500.0,0.0001452,2]
[353546856,1739907051252,-687.8,0.0001452,2]
[353546857,1739907051262,-274.74001913,0.0001452,2]
[353546858,1739907051273,-1317.4,0.0001452,2]
[353546859,1739907051282,-500.0,0.0001452,2]
[353546860,1739907051294,-714.53,0.0001452,2]
[353546861,1739907051303,-500.0,0.0001452,2]
[353546862,1739907051313,-500.0,0.0001452,2]
[353546863,1739907051323,-548.22957793,0.0001452,2]
[353546864,1739907051333,-500.0,0.0001452,2]
[353546865,1739907051342,-630.31,0.0001452,2]
[353546866,1739907051352,-500.0,0.0001452,2]
[353546867,1739907051362,-500.0,0.0001452,2]
[353546868,1739907051372,-613.52,0.0001452,2]
[353546869,1739907051382,-5390.8,0.0001452,2]
[353546870,1739907051391,-538.04,0.0001452,2]
[353546871,1739907051401,-500.0,0.0001452,2]
[353546872,1739907051411,-500.0,0.0001452,2]
[353546873,1739907051420,-500.0,0.0001452,2]
[353546874,1739907051429,-1775.31,0.0001452,2]
[353546875,1739907051439,-799.19,0.0001452,2]
[353546876,1739907051448,-500.0,0.0001452,2]
[353546877,1739907051458,-785.18,0.0001452,2]
[353546878,1739907051468,-306.345728,0.00014527,2]
[353546879,1739907051477,-156.0880938,0.00014527,2]
[353546880,1739907051487,-215.9231093,0.00014527,2]
[353546881,1739907051496,-547.82,0.00014602,2]
[353546882,1739907051506,-500.0,0.00014602,2]
[353546883,1739907051516,-500.0,0.00014602,2]
[353546884,1739907051525,-500.0,0.00014602,2]
[353546885,1739907051535,-500.0,0.00014602,2]
[353546886,1739907051544,-500.0,0.00014602,2]
[353546887,1739907051555,-500.0,0.00014602,2]
[353546888,1739907051564,-500.0,0.00014602,2]
[353546889,1739907051574,-500.0,0.00014602,2]
[353546890,1739907051584,-12422.8,0.00014602,2]
[353546891,1739907051593,-500.0,0.00014602,2]
[353546892,1739907051603,-500.0,0.00014602,2]
[353546893,1739907051615,-524.81,0.00014602,2]
[353546894,1739907051625,-416.16,0.00014602,2]
[353546895,1739907051634,-500.0,0.00014602,2]
[353546896,1739907051646,-687.8,0.00014602,2]
[353546897,1739907051655,-1317.4,0.00014602,2]
[353546898,1739907051665,-714.53,0.00014602,2]
[353546899,1739907051675,-500.0,0.00014602,2]
[353546900,1739907051687,-500.0,0.00014602,2]
[353546901,1739907051697,-500.0,0.00014602,2]
[353546902,1739907051707,-630.31,0.00014602,2]
[353546903,1739907051717,-500.0,0.00014602,2]
[353546904,1739907051726,-500.0,0.00014602,2]
[353546905,1739907051736,-613.52,0.00014602,2]
[353546906,1739907051745,-5390.8,0.00014602,2]
[353546907,1739907051755,-538.04,0.00014602,2]
[353546908,1739907051765,-500.0,0.00014602,2]
[353546909,1739907051775,-500.0,0.00014602,2]
[353546910,1739907051785,-500.0,0.00014602,2]
[353546911,1739907051795,-1775.31,0.00014602,2]
[353546912,1739907051804,-799.19,0.00014602,2]
[353546913,1739907051815,-500.0,0.00014602,2]
[353546914,1739907051824,-785.18,0.00014602,2]